fUSD/lending_fUSD_20240315
["ID","MTS","AMOUNT","RATE_DAILY","PERIOD"]
[318941923,1710460812279,200.0,0.00017695,2]
[318941924,1710460838497,243.74,0.00017695,2]
[318941925,1710460896398,3866.62,0.00017682,2]
[318941926,1710460900745,159.17,0.00017972,2]
[318941927,1710460904433,250.0,0.00017839,2]
[318941928,1710460909519,200.0,0.00017877,2]
[318941929,1710460976119,236.3,0.00017735,2]
[318941930,1710461014238,23890.0,0.00017684,2]
[318941931,1710461174361,1433.45,0.00017619,2]
[318941932,1710461237117,-158.01550153,0.00018006,2]
[318941933,1710461237143,-160.82699021,0.00018006,2]
[318941934,1710461237171,-169.98529053,0.00018048,2]
[318941935,1710461237195,-328.0,0.00018072,2]
[318941936,1710461237223,-157.35,0.00018072,2]
[318941937,1710461237250,-610.79,0.00018075,2]
[318941938,1710461237276,-159.17,0.00018106,2]
[318941939,1710461237300,-150.0,0.00018158,2]
[318941940,1710461237324,-159.17,0.0001824,2]
[318941941,1710461237347,-300.0,0.00018249,2]
[318941942,1710461237370,-150.0,0.00018249,2]
[318941943,1710461237393,-499.99,0.0001825,2]
[318941944,1710461237417,-2370.77,0.0001825,2]
[318941945,1710461237439,-224.99,0.0001825,2]
[318941946,1710461237465,-150.99,0.0001825,2]
[318941947,1710461237488,-918.93,0.0001825,2]
[318941948,1710461237510,-150.99,0.0001825,2]
[318941949,1710461237534,-532.88,0.0001825,2]
[318941950,1710461237559,-531.81,0.0001825,2]
[318941951,1710461237585,-9999.99,0.0001825,2]
[318941952,1710461237610,-160.8269902,0.00018258,2]
[318941953,1710461237634,-998.83728815,0.00018338,5]
[318941954,1710461237658,-159.17,0.00018374,2]
[318941955,1710461237681,-178.28495959,0.0001841,2]
[318941956,1710461237704,-178.28495959,0.0001846,2]
[318941957,1710461237731,-159.17,0.00018507,2]
[318941958,1710461237755,-1527.15155345,0.00018509,2]
[318941959,1710461237779,-8519.9813,0.00018509,2]
[318941960,1710461237802,-10223.7439,0.00018509,2]
[318941961,1710461237826,-208.2969,0.00018509,2]
[318941962,1710461237848,-6866.6324,0.00018509,2]
[318941963,1710461237871,-1000.0,0.00018509,2]
[318941964,1710461237894,-27351.71612173,0.0001851,2]
[318941965,1710461237916,-178.28495959,0.0001851,2]
[318941966,1710461238240,-160.8269902,0.0001851,2]
[318941967,1710461238267,-1342.902,0.0001851,2]
[318941968,1710461238291,-1673.7904,0.0001851,2]
[318941969,1710461238313,-255.43675254,0.00018608,2]
[318941970,1710461238341,-364.02300309,0.00018609,2]
[318941971,1710461238365,-52707.9917396,0.00018609,2]
[318941972,1710461310216,-154.41,0.0001814,2]
[318941973,1710461310236,-157.43821867,0.00018608,2]
[318941974,1710461310257,-13787.15178133,0.00018609,2]
[318941976,1710461343559,-2577.41,0.00018121,2]
[318941977,1710461343580,-150.0,0.00018608,2]
[318941978,1710461343601,-4219.59,0.00018609,2]
[318941979,1710461346161,-272.43,0.00018077,2]
[318941980,1710461346184,-2211.42885422,0.00018609,2]
[318941992,1710461432056,-250.0,0.00018045,2]
[318941993,1710461432066,-504.00927322,0.00018094,2]
[318941994,1710461432111,-379.84441,0.00018094,2]
[318941995,1710461432229,-3536.88730411,0.00018094,2]
[318941996,1710461432239,-462.4,0.00018095,2]
[318941997,1710461432248,-159.17,0.0001823,2]
[318941998,1710461432258,-1336.25760926,0.00018509,2]
[318941999,1710461432269,-541.76980175,0.00018607,2]
[318942000,1710461432279,-559.10874154,0.00018608,2]
[318942001,1710461432288,-155.0,0.00018608,2]
[318942002,1710461432301,-99068.98244439,0.00018609,2]
[318942003,1710461432314,-39584.99999985,0.00018609,2]
[318942004,1710461432350,-750.0,0.00018609,2]
[318942005,1710461432362,-617.15588037,0.00018609,2]
[318942010,1710461437955,-253.3534719,0.00018609,2]
[318942014,1710461438134,-484.5265281,0.00018609,2]
[318942015,1710461438145,-23484.23116771,0.00018609,2]
[318942016,1710461438247,-375.61444,0.00018609,2]
[318942017,1710461438259,-273.0,0.00018609,2]
[318942018,1710461438307,-6062.9094044,0.00018609,2]
[318942026,1710461440025,-2091.5394656,0.00018609,2]
[318942027,1710461440089,-9148.73274474,0.00018609,2]
[318942028,1710461440149,-1425.18376,0.00018609,2]
[318942032,1710461440467,549.71,0.00016224,2]
[318942068,1710461443116,-549.71,0.00018488,2]
[318942069,1710461443126,-394.6499996,0.00018609,2]
[318942070,1710461443175,-9678.99762923,0.00018609,2]
[318942071,1710461443187,-300.175,0.00018609,2]
[318942072,1710461443237,-296.75772232,0.00018609,2]
[318942073,1710461443248,-9062.15484257,0.00018609,2]
[318942076,1710461446488,-137079.99320963,0.00018609,2]
[318942079,1710461446955,-5780.06322089,0.00018609,2]
[318942080,1710461446967,-17981.99999493,0.00018609,2]
[318942081,1710461458635,200.0,0.00016438,2]
[318942084,1710461591528,23900.0,0.00017922,2]
[318942085,1710461642854,500.0,0.00017903,2]
[318942086,1710461686363,200.0,0.00017879,2]
[318942087,1710461692895,5000.0,0.00017868,2]
[318942088,1710461787835,159.86,0.00017785,2]
[318942089,1710461791409,2540.88,0.00017808,2]
[318942091,1710461806854,300.3,0.00017792,2]
[318942092,1710461815515,500.0,0.00017762,2]
[318942093,1710461817635,188.35,0.00017896,2]
[318942094,1710461817848,188.35,0.00017945,2]
[318942095,1710461818084,188.35,0.00017994,2]
[318942097,1710461847285,250.0,0.00017661,2]
[318942098,1710461850702,168.39,0.00017661,2]
[318942099,1710461850933,168.39,0.00017726,2]
[318942100,1710461851178,168.39,0.00017791,2]
[318942101,1710461851401,168.39,0.00017856,2]
[318942102,1710461851613,168.39,0.00017921,2]
[318942103,1710461851821,168.39,0.00017986,2]
[318942104,1710461865046,163.47,0.00014114,2]
[318942105,1710461907445,630.08,0.00017431,2]
[318942106,1710461942992,168.38,0.00017392,2]
[318942107,1710461943586,584.34,0.00015474,2]
[318942108,1710461943783,584.34,0.00017738,2]
[318942109,1710462135978,-498.68481426,0.00018038,2]
[318942110,1710462136002,-678.85138417,0.00018038,2]
[318942111,1710462136028,-150.0,0.00018039,2]
[318942112,1710462136052,-150.0,0.00018039,2]
[318942113,1710462136074,-10535.37062352,0.00018039,2]
[318942114,1710462136097,-7987.09317805,0.0001804,2]
[318942115,1710462159954,-2026.66541996,0.0001804,2]
[318942116,1710462159983,-188.35,0.00018043,2]
[318942117,1710462160008,-168.39,0.00018051,2]
[318942118,1710462160032,-161.68813385,0.00018082,2]
[318942119,1710462160055,-432.255047,0.00018082,2]
[318942120,1710462160078,-188.35,0.00018092,2]
[318942121,1710462160447,-168.39,0.00018116,2]
[318942122,1710462160503,-188.35,0.00018141,2]
[318942123,1710462160531,-499.99,0.00018141,2]
[318942124,1710462160555,-161.68813385,0.00018164,2]
[318942125,1710462160578,-999.99,0.00018164,2]
[318942126,1710462160601,-168.39,0.00018182,2]
[318942127,1710462160625,-188.35,0.0001819,2]
[318942128,1710462160647,-292.46,0.0001819,2]
[318942129,1710462160670,-9999.99,0.0001819,2]
[318942130,1710462160694,-188.35,0.00018239,2]
[318942131,1710462160716,-161.68813385,0.00018246,2]
[318942132,1710462160741,-168.39,0.00018247,2]
[318942133,1710462160767,-188.35,0.00018288,2]
[318942134,1710462160791,-168.39,0.00018312,2]
[318942135,1710462160813,-161.68813385,0.00018327,2]
[318942136,1710462160838,-188.35,0.00018337,2]
[318942137,1710462160862,-168.39,0.00018377,2]
[318942138,1710462160885,-188.35,0.00018386,2]
[318942139,1710462160909,-471.7818,0.00018409,2]
[318942140,1710462160932,-2500.0,0.00018409,2]
[318942141,1710462160953,-573.8878,0.00018409,2]
[318942142,1710462160976,-161.68813385,0.00018409,2]
[318942143,1710462161000,-1619.05881321,0.0001841,2]
[318942144,1710462161022,-29438.532,0.0001841,2]
[318942145,1710462161044,-3000.0,0.0001843,2]
[318942146,1710462161068,-188.35,0.00018435,2]
[318942147,1710462161091,-168.39,0.00018442,2]
[318942148,1710462161115,-188.35,0.00018484,2]
[318942149,1710462161137,-3000.0,0.0001849,2]
[318942150,1710462161162,-161.68813385,0.00018491,2]
[318942151,1710462161185,-6925.57404549,0.00018499,2]
[318942152,1710462161211,-168.39,0.00018507,2]
[318942153,1710462161234,-7644.33973909,0.00018507,2]
[318942154,1710462161258,-1101.37573076,0.00018507,2]
[318942155,1710462161285,-1393.29591804,0.00018507,2]
[318942156,1710462161309,-5501.5863051,0.00018507,2]
[318942157,1710462161333,-1425.41185728,0.00018507,2]
[318942158,1710462161356,-678.51500209,0.00018507,2]
[318942159,1710462161380,-498.07948809,0.00018507,2]
[318942160,1710462161404,-745.37566344,0.00018508,2]
[318942161,1710462161429,-186.27333353,0.00018508,2]
[318942162,1710462161453,-202.02943975,0.00018508,2]
[318942163,1710462161478,-2561.71988048,0.00018508,2]
[318942164,1710462161501,-1259.16912078,0.00018509,2]
[318942165,1710462161525,-17426.02,0.00018509,2]
[318942166,1710462161550,-384.96,0.00018509,2]
[318942167,1710462161572,-9384.3815,0.00018509,2]
[318942168,1710462161594,-1229.5815,0.00018509,2]
[318942169,1710462161617,-245000.0,0.00018509,2]
[318942170,1710462161640,-37831.0606,0.00018509,2]
[318942171,1710462161664,-3658.1149,0.00018509,2]
[318942172,1710462161686,-1259.16912078,0.0001851,2]
[318942173,1710462161709,-188.35,0.00018533,2]
[318942174,1710462161732,-3000.0,0.0001857,2]
[318942175,1710462161756,-168.39,0.00018572,2]
[318942176,1710462161780,-161.68813385,0.00018573,2]
[318942177,1710462161805,-188.35,0.00018583,2]
[318942178,1710462161828,-423.60603496,0.00018598,2]
[318942179,1710462161851,-164.97970269,0.00018605,2]
[318942180,1710462161875,-274.82245386,0.00018607,2]
[318942181,1710462161898,-200.5964552,0.00018607,2]
[318942182,1710462161922,-3028.78009663,0.00018607,2]
[318942183,1710462161945,-155.0,0.00018607,2]
[318942184,1710462161969,-403.0990893,0.00018607,2]
[318942185,1710462161992,-400.0,0.00018607,2]
[318942186,1710462162017,-155.0,0.00018607,2]
[318942187,1710462162041,-155.0,0.00018607,2]
[318942188,1710462162063,-155.10791873,0.00018607,2]
[318942189,1710462162085,-155.0,0.00018607,2]
[318942190,1710462162107,-3836.25239629,0.00018607,2]
[318942191,1710462162131,-612.63429304,0.00018607,2]
[318942192,1710462162155,-196.15136486,0.00018607,2]
[318942193,1710462162181,-160.95843019,0.00018607,2]
[318942194,1710462162206,-155.09069668,0.00018607,2]
[318942195,1710462162231,-307.69614278,0.00018607,2]
[318942196,1710462162255,-272.15832494,0.00018607,2]
[318942197,1710462162280,-2340.11297506,0.00018607,2]
[318942198,1710462162308,-782.18546444,0.00018607,2]
[318942199,1710462162332,-193.28476011,0.00018607,2]
[318942200,1710462162357,-197.11789868,0.00018607,2]
[318942201,1710462162381,-155.0,0.00018607,2]
[318942202,1710462162404,-269.66269784,0.00018607,2]
[318942203,1710462162428,-160.10134966,0.00018607,2]
[318942204,1710462162455,-1234.02746013,0.00018607,2]
[318942205,1710462162481,-155.0,0.00018607,2]
[318942206,1710462162505,-2690.47436381,0.00018607,2]
[318942207,1710462162528,-155.15332312,0.00018607,2]
[318942208,1710462162553,-758.22010475,0.00018607,2]
[318942209,1710462162575,-181.91602668,0.00018607,2]
[318942210,1710462162598,-4709.22076945,0.00018607,2]
[318942211,1710462162622,-1000.0,0.00018608,2]
[318942212,1710462162644,-155.0,0.00018608,2]
[318942213,1710462162670,-231.22937153,0.00018608,2]
[318942214,1710462162692,-976.9525961,0.00018608,2]
[318942215,1710462162715,-155.0,0.00018608,2]
[318942216,1710462162738,-3000.0,0.00018609,2]
[318942217,1710462162763,-188.35,0.00018632,2]
[318942218,1710462162789,-168.39,0.00018637,2]
[318942219,1710462162813,-3000.0,0.0001865,2]
[318942220,1710462162836,-161.68813385,0.00018655,2]
[318942221,1710462162859,-188.35,0.00018681,2]
[318942222,1710462162883,-168.39,0.00018702,2]
[318942223,1710462162906,-188.35,0.0001873,2]
[318942224,1710462162928,-3000.0,0.0001873,2]
[318942225,1710462162951,-161.68813385,0.00018736,2]
[318942226,1710462162974,-168.39,0.00018767,2]
[318942227,1710462162997,-188.35,0.00018779,2]
[318942228,1710462163020,-211.0,0.000188,2]
[318942229,1710462163043,-154.82862715,0.0001881,2]
[318942230,1710462163066,-161.68813385,0.00018818,2]
[318942231,1710462163088,-1391.7864804,0.00018824,2]
[318942232,1710462163113,-188.35,0.00018828,2]
[318942233,1710462163294,-168.39,0.00018832,2]
[318942234,1710462163319,-200.0,0.00018848,2]
[318942235,1710462163343,-800.0,0.00018848,2]
[318942236,1710462163367,-500.0,0.00018848,2]
[318942237,1710462163390,-1531.59995834,0.00018864,2]
[318942238,1710462163413,-168.39,0.00018897,2]
[318942239,1710462163436,-194.63012103,0.000189,2]
[318942240,1710462163463,-1137.446577,0.000189,2]
[318942241,1710462163486,-180.7429806,0.000189,2]
[318942242,1710462163509,-184.05896899,0.000189,2]
[318942243,1710462163533,-161.68813385,0.000189,2]
[318942244,1710462163558,-351.3055314,0.000189,2]
[318942245,1710462163581,-164.71311917,0.000189,2]
[318942246,1710462163605,-1265.47388858,0.000189,2]
[318942247,1710462163628,-1016.28667584,0.000189,2]
[318942248,1710462163656,-432.255047,0.00018904,2]
[318942249,1710462163679,-386.79882636,0.0001899,2]
[318942250,1710462163703,-386.79882636,0.0001899,2]
[318942251,1710462163726,-386.79882636,0.0001899,2]
[318942252,1710462163748,-263.31827855,0.00018998,2]
[318942253,1710462163779,-10421.91339404,0.00018998,2]
[318942254,1710462163804,-329.77646999,0.00018998,2]
[318942255,1710462163827,-165.96962442,0.00018999,2]
[318942256,1710462163851,-1052.16994629,0.00018999,2]
[318942257,1710462163876,-205.12491685,0.00018999,2]
[318942258,1710462163899,-4999.57296986,0.00018999,2]
[318942259,1710462163923,-7964.21111768,0.00018999,2]
[318942260,1710462163947,-1000.0,0.00018999,2]
[318942261,1710462163970,-1000.0,0.00018999,2]
[318942262,1710462163992,-599.0,0.00019,2]
[318942263,1710462164019,-12922.20276901,0.00019,2]
[318942264,1710462164802,-500000.0,0.00019,2]
[318942265,1710462164866,-500000.0,0.00019,2]
[318942266,1710462164916,-500000.0,0.00019,2]
[318942267,1710462165073,-500000.0,0.00019,2]
[318942268,1710462165403,-500000.0,0.00019,2]
[318942269,1710462166292,-4999.57296986,0.00018999,2]
[318942270,1710462166316,-495000.42703014,0.00019,2]
[318942271,1710462167155,-540.0,0.00019,2]
[318942272,1710462167179,-499460.0,0.00019,2]
[318942273,1710462168014,-500000.0,0.00019,2]
[318942274,1710462168894,-500000.0,0.00019,2]
[318942275,1710462169715,-500000.0,0.00019,2]
[318942276,1710462170566,-500000.0,0.00019,2]
[318942277,1710462171414,-154.82862715,0.0001881,2]
[318942278,1710462171440,-192.81559131,0.00018999,2]
[318942279,1710462171468,-2828.54547372,0.00018999,2]
[318942280,1710462171494,-496823.81030782,0.00019,2]
[318942281,1710462172222,-500000.0,0.00019,2]
[318942282,1710462173115,-247577.20283826,0.00019,2]
[318942283,1710462173138,-465.86968135,0.00019,2]
[318942284,1710462173162,-251956.92748039,0.00019,2]
[318942285,1710462174126,-500000.0,0.00019,2]
[318942286,1710462174887,-487258.82636998,0.00019,2]
[318942287,1710462174912,-12741.17363002,0.00019,2]
[318942288,1710462187934,1670.0,0.00018,2]
[318942290,1710462217690,-7000.0,0.0001804,2]
[318942291,1710462232781,-455.0028404,0.0001804,2]
[318942292,1710462232804,-154.82862715,0.0001881,2]
[318942293,1710462232828,-48899.09677709,0.00018998,2]
[318942294,1710462232853,-192.8155913,0.00018999,2]
[318942295,1710462232876,-1414.27273686,0.00018999,2]
[318942296,1710462232898,-155.30488969,0.00018999,2]
[318942297,1710462232921,-34434.99170324,0.00019,2]
[318942298,1710462232943,-2023.09,0.00019,2]
[318942299,1710462232967,-151.0,0.00019,2]
[318942300,1710462232989,-151.0,0.00019,2]
[318942301,1710462233012,-511.0,0.00019,2]
[318942302,1710462233035,-3000.0,0.00019,2]
[318942303,1710462233061,-465.86968135,0.00019,2]
[318942304,1710462233087,-2072.6565887,0.00019001,2]
[318942305,1710462233112,-9453.7854849,0.00019001,2]
[318942306,1710462233136,-408.2,0.00019014,2]
[318942307,1710462233162,-205.36,0.0001902,2]
[318942308,1710462233186,-205.36,0.00019087,2]
[318942309,1710462233211,-205.36,0.00019154,2]
[318942310,1710462233235,-157.916887,0.00019178,2]
[318942311,1710462233258,-500.0,0.00019178,2]
[318942312,1710462233281,-482.12397181,0.00019178,2]
[318942313,1710462233305,-542.46248159,0.00019178,2]
[318942314,1710462233329,-500.0,0.00019178,2]
[318942315,1710462233353,-500.0,0.00019178,2]
[318942316,1710462233377,-539.29137864,0.00019178,2]
[318942317,1710462233400,-446.89369644,0.00019178,2]
[318942318,1710462233423,-500.0,0.00019178,2]
[318942319,1710462233448,-500.0,0.00019178,2]
[318942320,1710462233473,-500.0,0.00019178,2]
[318942321,1710462233499,-500.0,0.00019178,2]
[318942322,1710462233525,-500.0,0.00019178,2]
[318942323,1710462233550,-500.0,0.00019178,2]
[318942324,1710462233576,-500.0,0.00019178,2]
[318942325,1710462233607,-500.0,0.00019178,2]
[318942326,1710462233633,-500.0,0.00019178,2]
[318942327,1710462233668,-500.0,0.00019178,2]
[318942328,1710462233699,-289.90962209,0.00019178,2]
[318942329,1710462233727,-500.0,0.00019178,2]
[318942330,1710462233753,-258.68605112,0.00019178,2]
[318942331,1710462233778,-1000.0,0.00019178,2]
[318942332,1710462233801,-1000.0,0.00019178,2]
[318942333,1710462233825,-1000.0,0.00019178,2]
[318942334,1710462233854,-1000.0,0.00019178,2]
[318942335,1710462233879,-1000.0,0.00019178,2]
[318942336,1710462233904,-1000.0,0.00019178,2]
[318942337,1710462233929,-1000.0,0.00019178,2]
[318942338,1710462233952,-1000.0,0.00019178,2]
[318942339,1710462233975,-1000.0,0.00019178,2]
[318942340,1710462233999,-895.0,0.00019178,2]
[318942341,1710462234023,-250.0,0.00019178,2]
[318942342,1710462234046,-151.36,0.00019178,2]
[318942343,1710462234069,-55000.0,0.00019178,2]
[318942344,1710462234097,-924.47,0.0001918,2]
[318942345,1710462234121,-924.47,0.0001918,2]
[318942346,1710462234145,-924.47,0.0001918,2]
[318942347,1710462234169,-924.47,0.0001918,2]
[318942348,1710462234197,-924.47,0.0001918,2]
[318942349,1710462234221,-924.47,0.0001918,2]
[318942350,1710462234244,-924.47,0.0001918,2]
[318942351,1710462234268,-924.47,0.0001918,2]
[318942352,1710462234291,-924.47,0.0001918,2]
[318942353,1710462234315,-924.47,0.0001918,2]
[318942354,1710462234380,96599.29569063,0.00019001,2]
[318942355,1710462248510,7456.83027305,0.00018,2]
[318942356,1710462250980,14149.80807113,0.00017099,5]
[318942357,1710462268483,6843.32319213,0.00018,2]
[318942358,1710462345074,495.93,0.00017892,2]
[318942359,1710462365684,241.0,0.00017892,2]
[318942360,1710462381696,1531.5999583,0.00017435,2]
[318942361,1710462382012,1531.5999583,0.00017677,2]
[318942362,1710462382321,1531.5999583,0.00017914,2]
[318942363,1710462395785,209.92,0.000178,2]
[318942364,1710462412000,211.43,0.00017795,2]
[318942365,1710462528377,500.0,0.0001776,2]
[318942366,1710462531812,1531.5999583,0.00017885,2]
[318942367,1710462584259,200.0,0.00017634,2]
[318942375,1710462632721,-3059.78849191,0.00018203,2]
[318942376,1710462632732,-155.0,0.00018203,2]
[318942377,1710462632741,-3130.39112642,0.00018204,2]
[318942378,1710462632750,-155.0,0.00018204,2]
[318942379,1710462632760,-775.4794766,0.00018204,2]
[318942380,1710462632769,-782.40260707,0.00018204,2]
[318942381,1710462632778,-166.01806612,0.00018204,2]
[318942382,1710462632788,-249.61449719,0.00018204,2]
[318942383,1710462632798,-206.02384519,0.00018204,2]
[318942384,1710462632810,-155.0,0.00018205,2]
[318942385,1710462632821,-1234.68323899,0.00018205,2]
[318942386,1710462632831,-12734.32774282,0.00018206,2]
[318942387,1710462632857,-22251.52175125,0.00018206,2]
[318942388,1710462632868,-5347.73041203,0.00018207,2]
[318942389,1710462632878,-2390.65,0.00018208,2]
[318942390,1710462632888,-250.0,0.0001823,2]
[318942391,1710462632901,-150.0,0.00018274,2]
[318942392,1710462632917,-2390.65,0.00018275,2]
[318942393,1710462632929,-541.68979592,0.00018305,2]
[318942394,1710462632938,-160.14223415,0.00018305,2]
[318942395,1710462632948,-298.76551,0.00018306,2]
[318942396,1710462632958,-150.99,0.00018306,2]
[318942397,1710462632968,-1336.1959,0.00018307,2]
[318942398,1710462632977,-111985.1182,0.00018307,2]
[318942399,1710462632986,-2447.696,0.00018307,2]
[318942400,1710462632996,-36518.53,0.00018307,2]
[318942401,1710462633006,-4603.54,0.00018307,2]
[318942402,1710462633016,-499.99,0.00018307,2]
[318942403,1710462633025,-1531.5999583,0.00018314,2]
[318942404,1710462633035,-4108.74,0.00018332,2]
[318942405,1710462633044,-2390.65,0.00018342,2]
[318942406,1710462633054,-217.04026273,0.00018387,2]
[318942407,1710462633064,-208.65915766,0.00018399,2]
[318942408,1710462633074,-971.60202709,0.00018405,2]
[318942409,1710462633083,-533.5830599,0.00018405,2]
[318942410,1710462633093,-373.63860962,0.00018405,2]
[318942411,1710462633107,-231.22937153,0.00018405,2]
[318942412,1710462633116,-559.10874154,0.00018405,2]
[318942413,1710462633126,-155.0,0.00018405,2]
[318942414,1710462633136,-360.23906378,0.00018405,2]
[318942415,1710462633148,-155.0,0.00018405,2]
[318942417,1710462633158,-534.81455584,0.00018405,2]
[318942419,1710462633167,-498.53002047,0.00018405,2]
[318942421,1710462633177,-155.0,0.00018405,2]
[318942423,1710462633186,-155.0,0.00018405,2]
[318942425,1710462633195,-205.0717255,0.00018405,2]
[318942427,1710462633204,-3028.78009663,0.00018405,2]
[318942429,1710462633214,-547.51672548,0.00018405,2]
[318942431,1710462633223,-155.0,0.00018405,2]
[318942433,1710462633233,-267.41327086,0.00018405,2]
[318942435,1710462633243,-1052.16994629,0.00018405,2]
[318942437,1710462633253,-155.0,0.00018405,2]
[318942439,1710462633262,-444.17250199,0.00018406,2]
[318942441,1710462633272,-220000.0,0.00018407,2]
[318942443,1710462633281,-4165.63,0.00018407,2]
[318942445,1710462633291,-2390.65,0.00018409,2]
[318942447,1710462633301,-1000.0,0.00018409,2]
[318942449,1710462633311,-17270.5669,0.00018409,2]
[318942451,1710462633321,-186.6504,0.00018409,2]
[318942453,1710462633331,-245000.0,0.00018409,2]
[318942455,1710462633341,-1000.0,0.00018409,2]
[318942457,1710462633350,-2390.65,0.00018476,2]
[318942460,1710462633360,-2390.65,0.00018543,2]
[318942462,1710462633374,-1531.5999583,0.00018597,2]
[318942464,1710462633384,-2390.65,0.0001861,2]
[318942466,1710462633394,-1531.5999583,0.0001865,2]
[318942468,1710462633407,-2390.65,0.00018677,2]
[318942470,1710462633418,-163.76442437,0.00018709,2]
[318942473,1710462633427,-525.80276719,0.00018711,2]
[318942474,1710462633437,-2390.65,0.00018744,2]
[318942476,1710462633448,-525.80276717,0.00018805,2]
[318942479,1710462633457,-272683.0,0.0001881,2]
[318942481,1710462633467,-2390.65,0.00018811,2]
[318942483,1710462633477,-163.76442437,0.00018841,2]
[318942485,1710462633487,-2390.65,0.00018878,2]
[318942487,1710462633497,-525.80276717,0.00018899,2]
[318942489,1710462633506,-181.20147401,0.000189,2]
[318942491,1710462633516,-425.613434,0.00018904,2]
[318942493,1710462633526,-2390.65,0.00018945,2]
[318942495,1710462633536,-163.76442437,0.00018974,2]
[318942497,1710462633546,-154.82862715,0.00018988,2]
[318942499,1710462633556,-3000.0,0.0001899,2]
[318942501,1710462633565,-512.68070213,0.00018997,2]
[318942503,1710462633575,-1330.89906446,0.00018997,2]
[318942504,1710462633585,-155.0,0.00018997,2]
[318942505,1710462633594,-155.13174149,0.00018998,2]
[318942506,1710462633604,-613.0296162,0.00018998,2]
[318942507,1710462633617,-492.414201,0.00018999,2]
[318942508,1710462633626,-658.13391747,0.00018999,2]
[318942509,1710462633636,-155.23663599,0.00018999,2]
[318942510,1710462633649,-155.57256422,0.00018999,2]
[318942511,1710462633659,-197.59547689,0.00018999,2]
[318942512,1710462633670,-274.73479245,0.00018999,2]
[318942513,1710462633680,-1207.2686414,0.00018999,2]
[318942514,1710462633690,-192.04004918,0.00018999,2]
[318942515,1710462633699,-736.73417615,0.00018999,2]
[318942516,1710462633709,-155.0,0.00018999,2]
[318942517,1710462633719,-158.09726557,0.00018999,2]
[318942518,1710462633728,-258.76571319,0.00018999,2]
[318942519,1710462633738,-183.58102236,0.00018999,2]
[318942520,1710462633747,-276.6998361,0.00018999,2]
[318942521,1710462633757,-1215.53858314,0.00018999,2]
[318942522,1710462633767,-155.0,0.00018999,2]
[318942523,1710462633776,-484.4647007,0.00018999,2]
[318942524,1710462633786,-408.56708482,0.00018999,2]
[318942525,1710462633795,-23160.61091717,0.00018999,2]
[318942526,1710462633805,-391476.11482182,0.00018999,2]
[318942527,1710462633815,-155.61049498,0.00018999,2]
[318942528,1710462633824,-1058.32938787,0.00018999,2]
[318942529,1710462633833,-155.0,0.00018999,2]
[318942530,1710462633842,-444.51426008,0.00018999,2]
[318942531,1710462633852,-319.19522286,0.00018999,2]
[318942532,1710462633862,-484.9810764,0.00018999,2]
[318942533,1710462633871,-1308.45547507,0.00018999,2]
[318942534,1710462633881,-155.0,0.00018999,2]
[318942535,1710462633890,-1532.62719463,0.00018999,2]
[318942536,1710462633903,-403.16490791,0.00018999,2]
[318942537,1710462633912,-200.5964552,0.00018999,2]
[318942538,1710462633921,-340.05377023,0.00018999,2]
[318942539,1710462633931,-1577.94988808,0.00018999,2]
[318942540,1710462633940,-7528.20279669,0.00018999,2]
[318942541,1710462633950,-255.75861295,0.00018999,2]
[318942542,1710462633959,-2489.6886415,0.00018999,2]
[318942543,1710462633969,-465.58493907,0.00019,2]
[318942544,1710462633978,-10274.94868026,0.00019,2]
[318942545,1710462633988,-23774.403063,0.00019,2]
[318942546,1710462633998,-1000.0,0.00019,2]
[318942547,1710462634008,-2390.65,0.00019012,2]